[Event "MCR rapid mládeže 2023 U16"]
[Site "Harachov, Czech Republic"]
[Date "2023.09.10"]
[Round "7.7"]
[White "Svadlenka, Dominik"]
[Black "Topencik, Bruno"]
[Result "1/2-1/2"]
[TimeControl "20min+5s/move"]
[WhiteElo "1588"]
[BlackElo "1451"]

1. d4 {[%clk 00:20:09]} e6 {[%clk 00:20:09]} {[%emt 00:00:02]} 2. c4 {[%clk
00:20:13]} {[%emt 00:00:02]} Nf6 {[%clk 00:20:12]} {[%emt 00:00:01]} 3. Nf3
{[%clk 00:20:17]} Bb4+ {[%clk 00:20:15]} {[%emt 00:00:02]} 4. Bd2 {[%clk
00:20:19]} {[%emt 00:00:02]} Qe7 {[%clk 00:20:19]} {[%emt 00:00:02]} 5. Nc3
{[%clk 00:20:00]} {[%emt 00:00:24]} O-O {[%clk 00:19:29]} {[%emt 00:00:54]} 6.
e3 {[%clk 00:20:01]} {[%emt 00:00:05]} Bxc3 {[%clk 00:18:16]} {[%emt 00:01:17]}
7. Bxc3 {[%clk 00:20:02]} {[%emt 00:00:04]} Ne4 {[%clk 00:18:19]} {[%emt
00:00:03]} 8. Qc2 {[%clk 00:19:54]} {[%emt 00:00:13]} Nxc3 {[%clk 00:18:18]}
{[%emt 00:00:05]} 9. Qxc3 {[%clk 00:19:57]} {[%emt 00:00:02]} d6 {[%clk
00:18:05]} {[%emt 00:00:18]} 10. Bd3 {[%clk 00:19:51]} {[%emt 00:00:11]} Re8
{[%clk 00:17:01]} {[%emt 00:01:09]} 11. O-O {[%clk 00:19:51]} {[%emt 00:00:05]}
e5 {[%clk 00:16:51]} {[%emt 00:00:15]} 12. Nd2 {[%clk 00:18:28]} {[%emt
00:01:28]} Nc6 {[%clk 00:16:09]} {[%emt 00:00:46]} 13. d5 {[%clk 00:18:23]}
{[%emt 00:00:11]} Nb8 {[%clk 00:16:08]} {[%emt 00:00:04]} 14. b4 {[%clk
00:17:47]} {[%emt 00:00:43]} b6 {[%clk 00:14:06]} {[%emt 00:02:08]} 15. Qc2
{[%clk 00:16:52]} {[%emt 00:01:00]} g6 {[%clk 00:13:35]} {[%emt 00:00:35]} 16.
e4 {[%clk 00:16:34]} {[%emt 00:00:23]} Qg5 {[%clk 00:12:45]} {[%emt 00:00:54]}
17. Rfe1 {[%clk 00:14:45]} {[%emt 00:01:55]} Nd7 {[%clk 00:09:35]} {[%emt
00:03:14]} 18. a3 {[%clk 00:13:31]} {[%emt 00:01:20]} Nf6 {[%clk 00:08:36]}
{[%emt 00:01:04]} 19. Bf1 {[%clk 00:11:17]} {[%emt 00:02:19]} Nh5 {[%clk
00:07:49]} {[%emt 00:00:52]} 20. g3 {[%clk 00:10:59]} {[%emt 00:00:24]} Bd7
{[%clk 00:06:41]} {[%emt 00:01:13]} 21. Bg2 {[%clk 00:10:55]} {[%emt 00:00:09]}
Rf8 {[%clk 00:06:04]} {[%emt 00:00:42]} 22. Qd3 {[%clk 00:06:35]} {[%emt
00:04:25]} f5 {[%clk 00:04:33]} {[%emt 00:01:35]} 23. Rac1 {[%clk 00:06:37]}
{[%emt 00:00:04]} f4 {[%clk 00:04:14]} {[%emt 00:00:24]} 24. c5 {[%clk
00:06:34]} {[%emt 00:00:08]} fxg3 {[%clk 00:03:19]} {[%emt 00:00:59]} 25. fxg3
{[%clk 00:06:23]} {[%emt 00:00:17]} Qd8 {[%clk 00:02:14]} {[%emt 00:01:11]} 26.
cxd6 {[%clk 00:06:17]} {[%emt 00:00:11]} cxd6 {[%clk 00:02:15]} {[%emt
00:00:03]} 27. Nc4 {[%clk 00:05:37]} {[%emt 00:00:45]} Qe7 {[%clk 00:01:54]}
{[%emt 00:00:26]} 28. Qb3 {[%clk 00:05:02]} {[%emt 00:00:40]} Rac8 {[%clk
00:01:50]} {[%emt 00:00:08]} 29. b5 {[%clk 00:04:32]} {[%emt 00:00:35]} Rc5
{[%clk 00:01:40]} {[%emt 00:00:15]} 30. a4 {[%clk 00:04:34]} {[%emt 00:00:03]}
Nf6 {[%clk 00:01:22]} {[%emt 00:00:23]} 31. Re2 {[%clk 00:03:23]} {[%emt
00:01:17]} Rfc8 {[%clk 00:01:06]} {[%emt 00:00:21]} 32. Rec2 {[%clk 00:03:25]}
{[%emt 00:00:03]} Kg7 {[%clk 00:00:56]} {[%emt 00:00:15]} 33. Nb2 {[%clk
00:02:57]} {[%emt 00:00:33]} Qd8 {[%clk 00:00:11]} {[%emt 00:00:50]} 34. Nd3
{[%clk 00:02:50]} {[%emt 00:00:11]} Rxc2 {[%clk 00:00:14]} {[%emt 00:00:02]} 35.
Rxc2 {[%clk 00:02:54]} {[%emt 00:00:01]} Rc7 {[%clk 00:00:12]} {[%emt
00:00:08]} 36. Nb4 {[%clk 00:02:40]} {[%emt 00:00:19]} Rc5 {[%clk 00:00:12]}
{[%emt 00:00:05]} 37. Nc6 {[%clk 00:02:07]} {[%emt 00:00:39]} Qc7 {[%clk
00:00:12]} {[%emt 00:00:04]} 38. h4 {[%clk 00:01:06]} {[%emt 00:01:06]} Bg4
{[%clk 00:00:09]} {[%emt 00:00:08]} 39. Rxc5 {[%clk 00:00:59]} {[%emt
00:00:11]} bxc5 {[%clk 00:00:09]} {[%emt 00:00:05]} 40. a5 {[%clk 00:00:54]}
{[%emt 00:00:11]} Nd7 {[%clk 00:00:10]} {[%emt 00:00:04]} 41. Bf3 {[%clk
00:00:35]} {[%emt 00:00:24]} Bxf3 {[%clk 00:00:09]} {[%emt 00:00:06]} 42. Qxf3
{[%clk 00:00:38]} {[%emt 00:00:01]} Nb8 {[%clk 00:00:09]} {[%emt 00:00:05]} 43.
Qb3 {[%clk 00:00:23]} {[%emt 00:00:20]} h6 {[%clk 00:00:08]} {[%emt 00:00:07]}
44. b6 {[%clk 00:00:16]} {[%emt 00:00:12]} Qb7 {[%clk 00:00:10]} {[%emt
00:00:03]} 45. Nxb8 {[%clk 00:00:07]} {[%emt 00:00:14]} Qxb8 {[%clk 00:00:12]}
{[%emt 00:00:03]} 46. bxa7 {[%clk 00:00:10]} {[%emt 00:00:02]} Qxb3 {[%clk
00:00:16]} {[%emt 00:00:01]} 47. a8=Q {[%clk 00:00:13]} {[%emt 00:00:02]} Qd1+
{[%clk 00:00:16]} {[%emt 00:00:06]} 48. Kf2 {[%clk 00:00:15]} {[%emt 00:00:02]}
Qd2+ {[%emt 00:00:02]} 49. Kf3 {[%clk 00:00:18]} {[%emt 00:00:02]} Qd3+ {[%clk
00:00:19]} {[%emt 00:00:04]} 50. Kf2 {[%clk 00:00:22]} {[%emt 00:00:01]} Qd2+
{[%clk 00:00:23]} {[%emt 00:00:02]} 51. Kg1 {[%clk 00:00:25]} {[%emt 00:00:02]}
Qe1+ {[%clk 00:00:23]} {[%emt 00:00:05]} 52. Kg2 {[%clk 00:00:28]} {[%emt
00:00:01]} Qe2+ {[%clk 00:00:27]} {[%emt 00:00:02]} 53. Kh3 {[%clk 00:00:29]}
{[%emt 00:00:04]} Qf1+ {[%clk 00:00:26]} {[%emt 00:00:06]} 54. Kh2 {[%clk
00:00:27]} {[%emt 00:00:07]} 1/2-1/2

[Event "MCR rapid mládeže 2023 U16"]
[Site "Harachov, Czech Republic"]
[Date "2023.09.10"]
[Round "7.8"]
[White "Stary, Vojtech"]
[Black "Vana, Jan"]
[Result "0-1"]
[TimeControl "20min+5s/move"]
[WhiteElo "1582"]
[BlackElo "1681"]

1. Nf3 {[%clk 00:20:08]} {[%emt 00:00:01]} Nf6 {[%clk 00:20:09]} {[%emt
00:00:01]} 2. d4 {[%clk 00:20:10]} {[%emt 00:00:03]} c5 {[%clk 00:20:06]}
{[%emt 00:00:09]} 3. c4 {[%clk 00:19:57]} {[%emt 00:00:17]} cxd4 {[%clk
00:20:06]} {[%emt 00:00:05]} 4. Nxd4 {[%clk 00:20:01]} {[%emt 00:00:01]} e5
{[%clk 00:20:10]} 5. Nb5 {[%clk 00:19:41]} {[%emt 00:00:25]} d5 {[%clk
00:20:13]} {[%emt 00:00:02]} 6. cxd5 {[%clk 00:19:26]} {[%emt 00:00:20]} Bc5
{[%clk 00:20:16]} {[%emt 00:00:02]} 7. e3 {[%clk 00:19:02]} {[%emt 00:00:29]}
O-O {[%clk 00:20:16]} {[%emt 00:00:05]} 8. N5c3 {[%clk 00:18:41]} {[%emt
00:00:25]} Bf5 {[%clk 00:19:40]} {[%emt 00:00:41]} 9. Be2 {[%clk 00:17:45]}
{[%emt 00:01:01]} Re8 {[%clk 00:19:16]} {[%emt 00:00:30]} 10. O-O {[%clk
00:17:41]} {[%emt 00:00:09]} Nbd7 {[%clk 00:19:09]} {[%emt 00:00:12]} 11. Nd2
{[%clk 00:16:15]} {[%emt 00:01:31]} e4 {[%clk 00:18:58]} {[%emt 00:00:16]} 12.
a3 {[%clk 00:15:18]} {[%emt 00:01:01]} Ne5 {[%clk 00:17:44]} {[%emt 00:01:18]}
13. b4 {[%clk 00:14:51]} {[%emt 00:00:33]} Bd6 {[%clk 00:17:06]} {[%emt
00:00:43]} 14. Bb2 {[%clk 00:13:09]} {[%emt 00:01:47]} Qe7 {[%clk 00:13:25]}
{[%emt 00:03:46]} 15. Qb3 {[%clk 00:09:29]} {[%emt 00:03:44]} Neg4 {[%clk
00:08:12]} {[%emt 00:05:19]} 16. g3 {[%clk 00:05:56]} {[%emt 00:03:38]} Ne5
{[%clk 00:04:16]} {[%emt 00:04:01]} 17. Nb5 {[%clk 00:05:08]} {[%emt 00:00:53]}
Bg4 {[%clk 00:03:18]} {[%emt 00:01:03]} 18. Bxg4 {[%clk 00:04:29]} {[%emt
00:00:45]} Nfxg4 {[%clk 00:02:43]} {[%emt 00:00:40]} 19. Nxd6 {[%clk 00:03:59]}
{[%emt 00:00:35]} Qxd6 {[%clk 00:02:44]} {[%emt 00:00:05]} 20. Bxe5 {[%clk
00:01:22]} {[%emt 00:02:41]} Nxe5 {[%clk 00:00:47]} {[%emt 00:02:02]} 21. Kg2
{[%clk 00:00:40]} {[%emt 00:00:47]} Qg6 {[%clk 00:00:17]} {[%emt 00:00:35]} 22.
Rac1 {[%clk 00:00:17]} {[%emt 00:00:28]} Rac8 {[%clk 00:00:09]} {[%emt
00:00:13]} 23. Rc3 {[%clk 00:00:12]} {[%emt 00:00:09]} h5 {[%clk 00:00:08]}
{[%emt 00:00:07]} 24. Rfc1 {[%clk 00:00:13]} {[%emt 00:00:04]} Rxc3 {[%clk
00:00:09]} {[%emt 00:00:04]} 25. Qxc3 {[%clk 00:00:16]} {[%emt 00:00:02]} Nd3
{[%clk 00:00:10]} {[%emt 00:00:04]} 26. Rf1 {[%clk 00:00:13]} {[%emt 00:00:07]}
Qf5 {[%clk 00:00:08]} {[%emt 00:00:08]} 27. h4 {[%clk 00:00:15]} {[%emt
00:00:03]} Qxd5 {[%clk 00:00:11]} {[%emt 00:00:02]} 28. Rd1 {[%clk 00:00:13]}
{[%emt 00:00:06]} Qf5 {[%clk 00:00:11]} {[%emt 00:00:05]} 29. Rf1 {[%clk
00:00:11]} {[%emt 00:00:06]} Rc8 {[%clk 00:00:10]} {[%emt 00:00:07]} 30. Qd4
{[%clk 00:00:12]} {[%emt 00:00:04]} Re8 {[%clk 00:00:08]} {[%emt 00:00:08]} 31.
Qxa7 {[%clk 00:00:11]} {[%emt 00:00:06]} g5 {[%clk 00:00:08]} {[%emt 00:00:05]}
32. hxg5 {[%clk 00:00:13]} {[%emt 00:00:04]} h4 {[%clk 00:00:07]} {[%emt
00:00:05]} 33. Qa5 {[%clk 00:00:14]} {[%emt 00:00:04]} h3+ {[%clk 00:00:07]}
{[%emt 00:00:05]} 34. Kh2 {[%clk 00:00:17]} {[%emt 00:00:02]} Qe6 {[%clk
00:00:07]} {[%emt 00:00:06]} 35. Qb5 {[%clk 00:00:13]} {[%emt 00:00:09]} b6
{[%clk 00:00:09]} {[%emt 00:00:04]} 36. a4 {[%clk 00:00:14]} {[%emt 00:00:04]}
Ne5 {[%clk 00:00:09]} {[%emt 00:00:04]} 37. a5 {[%clk 00:00:10]} {[%emt
00:00:08]} bxa5 {[%clk 00:00:13]} {[%emt 00:00:02]} 38. bxa5 {[%clk 00:00:14]}
Ng4+ {[%clk 00:00:12]} {[%emt 00:00:06]} 39. Kh1 {[%clk 00:00:17]} {[%emt
00:00:02]} Rd8 {[%clk 00:00:08]} {[%emt 00:00:09]} 40. Nb3 {[%clk 00:00:15]}
{[%emt 00:00:07]} Qg6 {[%clk 00:00:07]} {[%emt 00:00:06]} 41. Nd4 {[%clk
00:00:17]} {[%emt 00:00:02]} Kg7 {[%clk 00:00:07]} {[%emt 00:00:06]} 42. Qf5
{[%clk 00:00:21]} {[%emt 00:00:01]} Qxf5 {[%clk 00:00:07]} {[%emt 00:00:06]} 43.
Nxf5+ {[%clk 00:00:25]} {[%emt 00:00:01]} Kg6 {[%clk 00:00:11]} 44. Ne7+ {[%clk
00:00:27]} {[%emt 00:00:02]} Kxg5 {[%clk 00:00:13]} {[%emt 00:00:02]} 45. Nc6
{[%clk 00:00:27]} {[%emt 00:00:04]} Re8 {[%clk 00:00:14]} {[%emt 00:00:05]} 46.
Nd4 {[%clk 00:00:25]} {[%emt 00:00:07]} Ra8 {[%clk 00:00:10]} {[%emt 00:00:09]}
47. Nc6 {[%clk 00:00:25]} {[%emt 00:00:05]} Ra6 {[%clk 00:00:10]} {[%emt
00:00:05]} 48. Nd4 {[%clk 00:00:16]} {[%emt 00:00:14]} Rxa5 {[%clk 00:00:12]}
{[%emt 00:00:03]} 49. Nb3 {[%clk 00:00:19]} {[%emt 00:00:02]} Ra2 {[%clk
00:00:14]} {[%emt 00:00:04]} 50. Nc1 {[%clk 00:00:11]} {[%emt 00:00:13]} Rc2
{[%clk 00:00:08]} {[%emt 00:00:11]} 51. f3 {[%clk 00:00:10]} {[%emt 00:00:06]}
exf3 {[%clk 00:00:09]} {[%emt 00:00:04]} 52. Nd3 {[%clk 00:00:10]} {[%emt
00:00:05]} Rh2+ {[%clk 00:00:07]} {[%emt 00:00:06]} 53. Kg1 {[%clk 00:00:14]}
Rg2+ {[%clk 00:00:11]} {[%emt 00:00:01]} 54. Kh1 {[%clk 00:00:19]} f2 {[%clk
00:00:09]} {[%emt 00:00:06]} 55. Nxf2 {[%clk 00:00:10]} {[%emt 00:00:14]} Nxf2+
{[%clk 00:00:12]} {[%emt 00:00:02]} 56. Rxf2 {[%clk 00:00:13]} {[%emt
00:00:02]} Rxf2 {[%clk 00:00:16]} {[%emt 00:00:01]} 57. e4 {[%clk 00:00:17]}
{[%emt 00:00:01]} Kg4 {[%clk 00:00:16]} {[%emt 00:00:05]} 58. e5 {[%clk
00:00:21]} {[%emt 00:00:02]} Kxg3 {[%clk 00:00:19]} {[%emt 00:00:02]} 59. e6
{[%clk 00:00:25]} {[%emt 00:00:01]} Rf1# {[%clk 00:00:23]} 0-1

[Event "MCR rapid mládeže 2023 U16"]
[Site "Harachov, Czech Republic"]
[Date "2023.09.10"]
[Round "7.9"]
[White "Bartova, Hana"]
[Black "Horkova, Tereza"]
[Result "0-1"]
[TimeControl "20min+5s/move"]
[WhiteElo "1389"]
[BlackElo "1720"]

1. e4 {[%clk 00:20:08]} {[%emt 00:00:01]} c5 {[%clk 00:20:10]} 2. Nf3 {[%clk
00:20:12]} e6 {[%clk 00:20:14]} {[%emt 00:00:01]} 3. d4 {[%clk 00:20:16]} cxd4
{[%clk 00:20:18]} 4. Nxd4 {[%clk 00:20:20]} Nf6 {[%clk 00:20:23]} 5. Nc3 {[%clk
00:20:24]} {[%emt 00:00:01]} Nc6 {[%clk 00:20:27]} {[%emt 00:00:01]} 6. Be3
{[%clk 00:17:37]} {[%emt 00:05:09]} Bb4 {[%clk 00:20:26]} {[%emt 00:00:05]} 7.
f3 {[%clk 00:17:38]} {[%emt 00:00:04]} d5 {[%clk 00:20:21]} {[%emt 00:00:09]} 8.
Nxc6 {[%clk 00:15:38]} {[%emt 00:02:06]} bxc6 {[%clk 00:20:20]} {[%emt
00:00:06]} 9. e5 {[%clk 00:13:20]} {[%emt 00:02:23]} Nd7 {[%clk 00:20:21]}
{[%emt 00:00:03]} 10. f4 {[%clk 00:13:05]} {[%emt 00:00:20]} c5 {[%clk
00:19:06]} {[%emt 00:01:20]} 11. Bd2 {[%clk 00:11:42]} {[%emt 00:01:27]} a6
{[%clk 00:17:35]} {[%emt 00:01:37]} 12. Ne2 {[%clk 00:11:09]} {[%emt 00:00:38]}
Rb8 {[%clk 00:14:53]} {[%emt 00:02:47]} 13. b3 {[%clk 00:07:51]} {[%emt
00:03:23]} Bxd2+ {[%clk 00:11:40]} {[%emt 00:03:19]} 14. Qxd2 {[%clk 00:07:53]}
{[%emt 00:00:03]} Nb6 {[%clk 00:11:30]} {[%emt 00:00:14]} 15. g3 {[%clk
00:06:59]} {[%emt 00:01:00]} Bb7 {[%clk 00:11:02]} {[%emt 00:00:32]} 16. Bg2
{[%clk 00:06:19]} {[%emt 00:00:45]} Qc7 {[%clk 00:10:47]} {[%emt 00:00:20]} 17.
Rd1 {[%clk 00:04:57]} {[%emt 00:01:27]} O-O {[%clk 00:09:36]} {[%emt 00:01:16]}
18. Ng1 {[%clk 00:03:53]} {[%emt 00:01:09]} d4 {[%clk 00:07:21]} {[%emt
00:02:21]} 19. Nf3 {[%clk 00:03:57]} {[%emt 00:00:02]} Nd5 {[%clk 00:07:09]}
{[%emt 00:00:17]} 20. Rc1 {[%clk 00:02:26]} {[%emt 00:01:36]} Ne3 {[%clk
00:06:26]} {[%emt 00:00:47]} 21. c3 {[%clk 00:02:19]} {[%emt 00:00:12]} Qc6
{[%clk 00:05:31]} {[%emt 00:01:00]} 22. Rg1 {[%clk 00:00:51]} {[%emt 00:01:34]}
Nxg2+ {[%clk 00:05:24]} {[%emt 00:00:12]} 23. Rxg2 {[%clk 00:00:49]} {[%emt
00:00:07]} Qxf3 {[%clk 00:05:20]} {[%emt 00:00:10]} 24. Rf2 {[%clk 00:00:52]}
{[%emt 00:00:01]} Qe4+ {[%clk 00:04:54]} {[%emt 00:00:31]} 25. Kd1 {[%clk
00:00:51]} {[%emt 00:00:07]} Rfd8 {[%clk 00:03:16]} {[%emt 00:01:42]} 26. c4
{[%clk 00:00:31]} {[%emt 00:00:25]} Rd7 {[%clk 00:02:52]} {[%emt 00:00:30]} 27.
Rf1 {[%clk 00:00:00]} {[%emt 00:00:31]} 0-1

[Event "MCR rapid mládeže 2023 U16"]
[Site "Harachov, Czech Republic"]
[Date "2023.09.10"]
[Round "7.10"]
[White "Kovarova, Karolina"]
[Black "Barteckova, Valerie"]
[Result "0-1"]
[TimeControl "20min+5s/move"]
[WhiteElo "1006"]
[BlackElo "1498"]

1. e4 {[%clk 00:20:08]} c6 {[%clk 00:20:09]} {[%emt 00:00:02]} 2. Nf3 {[%clk
00:20:10]} {[%emt 00:00:03]} d5 {[%clk 00:20:12]} {[%emt 00:00:01]} 3. exd5
{[%clk 00:20:02]} {[%emt 00:00:13]} cxd5 {[%clk 00:20:16]} {[%emt 00:00:02]} 4.
Bb5+ {[%clk 00:19:32]} {[%emt 00:00:34]} Nc6 {[%clk 00:19:29]} {[%emt
00:02:57]} 5. Ne5 {[%clk 00:19:21]} {[%emt 00:00:16]} Bd7 {[%clk 00:18:42]}
{[%emt 00:00:52]} 6. Bxc6 {[%clk 00:16:43]} {[%emt 00:02:43]} Bxc6 {[%clk
00:18:41]} {[%emt 00:00:06]} 7. Qf3 {[%clk 00:16:19]} {[%emt 00:00:28]} Nf6
{[%clk 00:16:26]} {[%emt 00:02:20]} 8. d4 {[%clk 00:15:02]} {[%emt 00:01:22]}
h6 {[%clk 00:15:32]} {[%emt 00:01:00]} 9. Nc3 {[%clk 00:13:55]} {[%emt
00:01:12]} e6 {[%clk 00:15:13]} {[%emt 00:00:25]} 10. Ne2 {[%clk 00:12:46]}
{[%emt 00:01:13]} Be7 {[%clk 00:13:58]} {[%emt 00:01:20]} 11. Qg3 {[%clk
00:11:34]} {[%emt 00:01:17]} Bf8 {[%clk 00:11:34]} {[%emt 00:02:30]} 12. Qf3
{[%clk 00:09:19]} {[%emt 00:02:20]} Rc8 {[%clk 00:08:05]} {[%emt 00:03:34]} 13.
O-O {[%clk 00:07:34]} {[%emt 00:01:49]} Qc7 {[%clk 00:06:58]} {[%emt 00:01:12]}
14. Bf4 {[%clk 00:06:35]} {[%emt 00:01:04]} Qb6 {[%clk 00:06:36]} {[%emt
00:00:23]} 15. b3 {[%clk 00:05:47]} {[%emt 00:00:58]} Bb5 {[%clk 00:06:10]}
{[%emt 00:00:30]} 16. a4 {[%clk 00:04:49]} {[%emt 00:01:04]} Bxe2 {[%clk
00:04:55]} {[%emt 00:01:20]} 17. Qxe2 {[%clk 00:04:50]} {[%emt 00:00:03]} Bb4
{[%clk 00:04:03]} {[%emt 00:00:58]} 18. c4 {[%clk 00:03:50]} {[%emt 00:01:05]}
Qxd4 {[%clk 00:03:25]} {[%emt 00:00:43]} 19. Rad1 {[%clk 00:03:15]} {[%emt
00:00:40]} Qxf4 {[%clk 00:03:15]} {[%emt 00:00:16]} 20. g3 {[%clk 00:02:43]}
{[%emt 00:00:37]} Qe4 {[%clk 00:03:02]} {[%emt 00:00:12]} 21. Qb2 {[%clk
00:01:38]} {[%emt 00:01:16]} O-O {[%clk 00:02:30]} {[%emt 00:00:37]} 22. Nd3
{[%clk 00:01:20]} {[%emt 00:00:23]} Be7 {[%clk 00:02:00]} {[%emt 00:00:35]} 23.
Rfe1 {[%clk 00:01:06]} {[%emt 00:00:18]} Qh7 {[%clk 00:02:04]} {[%emt
00:00:01]} 24. cxd5 {[%clk 00:00:45]} {[%emt 00:00:26]} Nxd5 {[%clk 00:02:08]}
{[%emt 00:00:01]} 25. Re4 {[%clk 00:00:27]} {[%emt 00:00:23]} Qxe4 {[%clk
00:01:49]} {[%emt 00:00:24]} 26. Qd2 {[%clk 00:00:13]} {[%emt 00:00:19]} Bb4
{[%clk 00:01:33]} {[%emt 00:00:21]} 27. Qb2 {[%clk 00:00:11]} {[%emt 00:00:06]}
Qf5 {[%clk 00:01:23]} {[%emt 00:00:13]} 28. Qb1 {[%clk 00:00:09]} {[%emt
00:00:09]} Nc3 {[%clk 00:01:25]} {[%emt 00:00:03]} 29. Qc1 {[%clk 00:00:10]}
{[%emt 00:00:03]} Nxd1 {[%clk 00:01:28]} {[%emt 00:00:02]} 30. Qxd1 {[%clk
00:00:14]} {[%emt 00:00:01]} Qd5 {[%clk 00:01:28]} {[%emt 00:00:04]} 31. Qe2
{[%clk 00:00:17]} {[%emt 00:00:02]} Rfd8 {[%clk 00:01:27]} {[%emt 00:00:08]} 32.
Nf4 {[%clk 00:00:19]} {[%emt 00:00:03]} Qd1+ {[%clk 00:01:29]} {[%emt
00:00:02]} 33. Qxd1 {[%clk 00:00:20]} {[%emt 00:00:04]} Rxd1+ {[%clk 00:01:33]}
{[%emt 00:00:01]} 34. Kg2 {[%clk 00:00:23]} {[%emt 00:00:02]} Rcc1 {[%clk
00:01:37]} {[%emt 00:00:02]} 35. Kh3 {[%clk 00:00:21]} {[%emt 00:00:07]} Bd6
{[%clk 00:01:41]} 36. Kg2 {[%clk 00:00:20]} {[%emt 00:00:06]} Bxf4 {[%clk
00:01:44]} {[%emt 00:00:03]} 37. gxf4 {[%clk 00:00:23]} {[%emt 00:00:03]} Rg1+
{[%clk 00:01:46]} {[%emt 00:00:01]} 38. Kf3 {[%clk 00:00:26]} {[%emt 00:00:03]}
Rc3+ {[%clk 00:01:49]} {[%emt 00:00:02]} 39. Ke4 {[%clk 00:00:26]} {[%emt
00:00:05]} Rxb3 {[%clk 00:01:50]} {[%emt 00:00:04]} 40. h4 {[%clk 00:00:27]}
{[%emt 00:00:04]} Rf1 {[%clk 00:01:54]} {[%emt 00:00:01]} 41. f5 {[%clk
00:00:19]} {[%emt 00:00:13]} exf5+ {[%clk 00:01:57]} {[%emt 00:00:02]} 42. Kxf5
{[%clk 00:00:22]} {[%emt 00:00:01]} Rxf2+ {[%clk 00:02:00]} {[%emt 00:00:02]}
43. Ke5 {[%clk 00:00:24]} {[%emt 00:00:03]} Re3+ {[%clk 00:02:04]} {[%emt
00:00:01]} 44. Kd6 {[%clk 00:00:27]} {[%emt 00:00:02]} Rd2+ {[%clk 00:02:07]}
{[%emt 00:00:02]} 45. Kc7 {[%clk 00:00:29]} {[%emt 00:00:03]} Rc3+ {[%clk
00:02:11]} {[%emt 00:00:02]} 46. Kxb7 {[%clk 00:00:29]} {[%emt 00:00:05]} Rb2+
{[%clk 00:02:14]} {[%emt 00:00:01]} 47. Kxa7 {[%clk 00:00:32]} {[%emt
00:00:02]} Ra3 {[%clk 00:02:18]} {[%emt 00:00:01]} 48. Ka6 {[%clk 00:00:35]}
{[%emt 00:00:02]} Rxa4# {[%emt 00:00:02]} 0-1